fUSD/lending_fUSD_20250205
["ID","MTS","AMOUNT","RATE_DAILY","PERIOD"]
[351804353,1738792463464,160.0,0.0002,120]
[351804354,1738792590788,150.0,0.00019709,120]
[351804355,1738792651320,150.0,0.00019688,120]
[351804356,1738792710812,150.0,0.00019709,120]
[351804357,1738792891315,150.0,0.00019974,120]
[351804358,1738792918987,336.0,0.0002,120]
[351804359,1738793010776,150.0,0.00019143,120]
[351804360,1738793070876,150.0,0.00019786,120]
[351804361,1738793195864,2511.04485855,0.00018799,120]
[351804362,1738793431349,150.0,0.0001925,120]
[351804367,1738793431931,-2033.399527,8.851e-05,2]
[351804368,1738793431944,-466.600473,8.851e-05,2]
[351804369,1738793431954,-1154.18105064,8.973e-05,2]
[351804370,1738793431992,-485.485,8.973e-05,2]
[351804371,1738793432003,-433.68891129,8.973e-05,2]
[351804372,1738793432160,-2193.9,8.973e-05,2]
[351804386,1738793437696,-732.74503807,8.973e-05,2]
[351804387,1738793437706,-168.98352605,8.973e-05,2]
[351804388,1738793437715,-500.0,0.00010135,2]
[351804389,1738793437726,-500.0,0.00010135,2]
[351804390,1738793437735,-178.67,0.00010135,2]
[351804391,1738793437744,-206.78,0.00010135,2]
[351804392,1738793437754,-500.0,0.00010135,2]
[351804393,1738793437763,-738.86,0.00010137,2]
[351804394,1738793437772,-329.29,0.00010272,2]
[351804395,1738793437781,-591.31,0.00010272,2]
[351804396,1738793437791,-500.21766187,0.00010546,2]
[351804397,1738793437800,-165.67196436,0.00010546,2]
[351804398,1738793437810,-370.89,0.00010958,2]
[351804399,1738793437819,-150.0,0.00010988,2]
[351804400,1738793437828,-20793.38357678,0.00010989,2]
[351804401,1738793437876,-3106.61642322,0.00010989,2]
[351804402,1738793437885,-1127.57,0.00011459,2]
[351804403,1738793437895,-1000.0,0.00011535,2]
[351804404,1738793437905,-157.25,0.00011608,2]
[351804405,1738793437914,-1500.0,0.0001161,2]
[351804406,1738793437923,-1085.32,0.00012,2]
[351804407,1738793437937,-1000.0,0.00012,2]
[351804408,1738793437946,-1000.0,0.00012,2]
[351804409,1738793437955,-1000.0,0.00012,2]
[351804410,1738793437965,-1000.0,0.00012,2]
[351804411,1738793437975,-1000.0,0.00012,2]
[351804412,1738793437984,-1000.0,0.00012,2]
[351804413,1738793437993,-1000.0,0.00012,2]
[351804414,1738793438002,-1000.0,0.00012,2]
[351804415,1738793438012,-1000.0,0.00012,2]
[351804416,1738793438022,-1000.0,0.00012,2]
[351804417,1738793438031,-1061.60118839,0.00012082,2]
[351804418,1738793438041,-376.38,0.00012329,2]
[351804419,1738793438051,-502.08687245,0.00012355,2]
[351804420,1738793438061,-1966.98,0.00012586,2]
[351804421,1738793438071,-538.0,0.00012633,2]
[351804422,1738793438084,-1324.0,0.00012633,2]
[351804423,1738793438093,-150.0,0.00012633,2]
[351804424,1738793438103,-1689.553,0.00012633,2]
[351804425,1738793438113,-1006.0,0.00012633,2]
[351804426,1738793438122,-1108.0,0.00012633,2]
[351804427,1738793438132,-1000.0,0.00012976,2]
[351804428,1738793438142,-550.0,0.00013,2]
[351804429,1738793438151,-370.55,0.00013,2]
[351804430,1738793438160,-764.46,0.00013169,2]
[351804431,1738793438170,-500.0,0.00013698,2]
[351804432,1738793438181,-500.0,0.00013698,2]
[351804433,1738793438191,-500.0,0.00013698,2]
[351804434,1738793438200,-500.0,0.00013698,2]
[351804435,1738793438210,-500.0,0.00013698,2]
[351804436,1738793438219,-500.0,0.00013698,2]
[351804437,1738793438228,-291.87,0.00013698,2]
[351804438,1738793438237,-500.0,0.00013699,2]
[351804439,1738793438247,-500.0,0.00013699,2]
[351804440,1738793438257,-50131.1754122,0.00013699,2]
[351804441,1738793438266,-607.17,0.00013699,2]
[351804442,1738793438276,-2885.25,0.000139,31]
[351804443,1738793438285,-2885.25,0.000139,31]
[351804444,1738793438294,-2885.25,0.000139,31]
[351804445,1738793438303,-2885.25,0.000139,31]
[351804446,1738793438312,-2885.25,0.000139,31]
[351804447,1738793438322,-2885.25,0.000139,31]
[351804460,1738793438484,-2885.25,0.000139,31]
[351804463,1738793438494,-2885.25,0.000139,31]
[351804466,1738793438504,-2885.25,0.000139,31]
[351804468,1738793438514,-2885.25,0.000139,31]
[351804470,1738793438524,-2885.25,0.000139,31]
[351804472,1738793438533,-2885.25,0.000139,31]
[351804474,1738793438542,-2885.25,0.000139,31]
[351804476,1738793438551,-2885.25,0.000139,31]
[351804478,1738793438561,-2885.25,0.000139,31]
[351804480,1738793438570,-2885.25,0.000139,31]
[351804482,1738793438580,-500.0,0.00013929,2]
[351804484,1738793438590,-682.82,0.00014014,2]
[351804486,1738793438599,-250.0,0.00014282,2]
[351804488,1738793438608,-1000.0,0.00014418,2]
[351804490,1738793438618,-14391.68,0.0001445,2]
[351804492,1738793438627,-500.0,0.00014604,2]
[351804494,1738793438636,-4000.0,0.00014823,2]
[351804496,1738793438645,-500.0,0.00014995,2]
[351804498,1738793438655,-600.0,0.00015,2]
[351804500,1738793438664,-200.0,0.00015012,2]
[351804502,1738793438674,-153.0,0.00015021,2]
[351804504,1738793438685,-300.0,0.00015068,2]
[351804506,1738793438694,-500.0,0.00015279,2]
[351804508,1738793438703,-764.46,0.00015433,2]
[351804510,1738793438712,-152.0,0.000156,5]
[351804512,1738793438722,-1000.0,0.0001586,2]
[351804514,1738793438731,-500.0,0.00015954,2]
[351804516,1738793438740,-500.0,0.00015954,2]
[351804518,1738793438749,-200.0,0.00015954,2]
[351804520,1738793438758,-9999.99,0.00016116,2]
[351804522,1738793438767,-175.20263862,0.00016224,2]
[351804523,1738793438777,-2286.854,0.00016224,2]
[351804526,1738793438786,-500.0,0.00016338,2]
[351804528,1738793438796,-325.4803,0.00016399,2]
[351804529,1738793438805,-300.0,0.00016438,2]
[351804531,1738793438814,-500.0,0.00016629,2]
[351804534,1738793438824,-2265.47,0.00016658,30]
[351804536,1738793438833,-3255.98,0.000167,7]
[351804538,1738793438842,-165.25,0.00016712,2]
[351804540,1738793438851,-738.86,0.00016813,2]
[351804542,1738793438860,-500.0,0.00016847,2]
[351804543,1738793438870,-500.0,0.00016984,2]
[351804545,1738793438879,-650.0,0.00017,2]
[351804548,1738793438889,-500.0,0.00017121,2]
[351804550,1738793438898,-607.17,0.00017123,2]
[351804552,1738793438907,-624.85,0.00017258,2]
[351804553,1738793438916,-256.5,0.00017267,2]
[351804555,1738793438926,-1000.0,0.00017302,2]
[351804557,1738793438937,-500.0,0.00017304,2]
[351804559,1738793438947,-500.0,0.00017308,2]
[351804561,1738793438956,-500.0,0.00017408,2]
[351804563,1738793438964,-500.0,0.00017508,2]
[351804565,1738793438974,-500.0,0.00017608,2]
[351804567,1738793438984,-764.46,0.00017697,2]
[351804570,1738793438994,-500.0,0.00017708,2]
[351804571,1738793439004,-500.0,0.00017808,2]
[351804573,1738793439013,-500.0,0.00017908,2]
[351804575,1738793439023,-500.0,0.00017978,2]
[351804577,1738793439032,-500.0,0.00018008,2]
[351804579,1738793439042,-2000.0,0.00018082,2]
[351804581,1738793439052,-500.0,0.00018108,2]
[351804583,1738793439061,-500.0,0.00018208,2]
[351804585,1738793439070,-500.0,0.00018308,2]
[351804587,1738793439080,-500.0,0.00018408,2]
[351804589,1738793439089,-2259.0,0.00018441,2]
[351804591,1738793439098,-500.0,0.00018508,2]
[351804593,1738793439107,-153.0,0.000186,2]
[351804595,1738793439116,-500.0,0.00018608,2]
[351804597,1738793439126,-150.0,0.0001863,20]
[351804599,1738793439135,-2259.0,0.00018631,2]
[351804601,1738793439144,-500.0,0.00018653,2]
[351804603,1738793439153,-500.0,0.00018708,2]
[351804605,1738793439162,-2000.0,0.00018751,2]
[351804607,1738793439172,-500.0,0.00018799,2]
[351804609,1738793439181,-500.0,0.00018799,2]
[351804611,1738793439190,-500.0,0.00018799,2]
[351804613,1738793439199,-500.0,0.00018799,2]
[351804615,1738793439209,-500.0,0.00018799,2]
[351804617,1738793439218,-500.0,0.00018799,2]
[351804619,1738793439227,-500.0,0.00018799,2]
[351804621,1738793439236,-592.47,0.00018799,2]
[351804623,1738793439245,-500.0,0.00018799,2]
[351804625,1738793439254,-500.0,0.00018799,2]
[351804627,1738793439265,-500.0,0.00018799,2]
[351804629,1738793439274,-500.0,0.00018799,2]
[351804631,1738793439284,-500.0,0.00018799,2]
[351804633,1738793439293,-500.0,0.00018799,2]
[351804635,1738793439302,-500.0,0.00018799,2]
[351804637,1738793439311,-500.0,0.00018799,2]
[351804639,1738793439320,-397.51358309,0.00018799,2]
[351804641,1738793439329,-500.0,0.00018799,2]
[351804643,1738793439339,-350.94543928,0.00018799,2]
[351804645,1738793439348,-647.31,0.00018799,2]
[351804646,1738793439358,-500.0,0.00018799,2]
[351804649,1738793439367,-500.0,0.00018799,2]
[351804650,1738793439376,-500.0,0.00018799,2]
[351804652,1738793439387,-500.0,0.00018799,2]
[351804654,1738793439397,-500.0,0.00018799,2]
[351804656,1738793439407,-1000.0,0.00018799,2]
[351804659,1738793439419,-500.0,0.00018799,2]
[351804660,1738793439428,-500.0,0.00018799,2]
[351804663,1738793439439,-500.0,0.00018799,2]
[351804664,1738793439449,-420.46320415,0.00018799,2]
[351804666,1738793439458,-507.072356,0.00018799,2]
[351804668,1738793439468,-500.0,0.00018799,2]
[351804670,1738793439477,-500.0,0.00018799,2]
[351804672,1738793439487,-958.0,0.000188,2]
[351804674,1738793439498,-2885.25,0.000188,31]
[351804677,1738793439508,-2885.25,0.000188,31]
[351804678,1738793439517,-2885.25,0.000188,31]
[351804680,1738793439527,-2885.25,0.000188,31]
[351804682,1738793439536,-2885.25,0.000188,31]
[351804684,1738793439545,-2885.25,0.000188,31]
[351804686,1738793439555,-2885.25,0.000188,31]
[351804688,1738793439564,-2885.25,0.000188,31]
[351804690,1738793439574,-2885.25,0.000188,31]
[351804692,1738793439585,-2885.25,0.000188,31]
[351804694,1738793439594,-2885.25,0.000188,31]
[351804696,1738793439603,-2885.25,0.000188,31]
[351804699,1738793439613,-2885.25,0.000188,31]
[351804701,1738793439623,-2885.25,0.000188,31]
[351804702,1738793439633,-2885.25,0.000188,31]
[351804704,1738793439642,-2885.25,0.000188,31]
[351804706,1738793439651,-2885.25,0.000188,31]
[351804709,1738793439662,-2885.25,0.000188,31]
[351804711,1738793439671,-2885.25,0.000188,31]
[351804713,1738793439681,-2885.25,0.000188,31]
[351804716,1738793439691,-2885.25,0.000188,31]
[351804719,1738793439701,-2885.25,0.000188,31]
[351804721,1738793439710,-2885.25,0.000188,31]
[351804723,1738793439721,-2885.25,0.000188,31]
[351804725,1738793439730,-655.0,0.00018808,2]
[351804727,1738793439739,-2259.0,0.00018821,2]
[351804729,1738793439748,-2019.29,0.00018884,2]
[351804731,1738793439758,-384.51,0.00018884,2]
[351804733,1738793439768,-150.0,0.00018884,2]
[351804736,1738793439777,-150.0,0.00018884,2]
[351804738,1738793439787,-438.59,0.00018884,2]
[351804740,1738793439796,-150.0,0.00018884,2]
[351804742,1738793439805,-438.59,0.00018884,2]
[351804744,1738793439814,-150.0,0.00018884,2]
[351804746,1738793439823,-150.0,0.00018884,2]
[351804748,1738793439833,-438.59,0.00018884,2]
[351804750,1738793439842,-500.0,0.00018936,2]
[351804752,1738793439851,-413.44,0.00018936,2]
[351804754,1738793439860,-500.0,0.00018936,2]
[351804756,1738793439871,-420.31683562,0.00018936,2]
[351804759,1738793439880,-506.84,0.00018936,2]
[351804762,1738793439890,-500.0,0.00018936,2]
[351804764,1738793439899,-500.0,0.00018936,2]
[351804766,1738793439909,-500.0,0.00018936,2]
[351804768,1738793439918,-500.0,0.00018936,2]
[351804771,1738793439927,-241.3,0.00018936,2]
[351804774,1738793439937,-500.0,0.00018936,2]
[351804777,1738793439947,-645.18,0.00018936,2]
[351804780,1738793439956,-500.0,0.00018936,2]
[351804783,1738793439965,-500.0,0.00018936,2]
[351804786,1738793439975,-45787.75145695,0.00019,7]
[351804789,1738793439984,-4782.132808,0.00019,2]
[351804791,1738793439994,-700.0,0.00019,2]
[351804793,1738793440003,-2259.0,0.00019012,2]
[351804795,1738793440012,-739.15853058,0.00019012,2]
[351804797,1738793440021,-4589.72895972,0.00019048,2]
[351804799,1738793440031,-500.0,0.00019073,2]
[351804801,1738793440042,-500.0,0.00019073,2]
[351804803,1738793440051,-500.0,0.00019073,2]
[351804805,1738793440061,-375.28,0.00019073,2]
[351804807,1738793440070,-500.0,0.00019073,2]
[351804809,1738793440080,-500.0,0.00019073,2]
[351804811,1738793440089,-500.0,0.00019073,2]
[351804813,1738793440099,-500.0,0.00019073,2]
[351804815,1738793440108,-500.0,0.00019078,2]
[351804817,1738793440118,-600.0,0.000191,6]
[351804819,1738793440128,-150.0,0.00019178,2]
[351804821,1738793440138,-1300.0,0.000192,7]
[351804823,1738793440148,-2259.0,0.00019202,2]
[351804825,1738793440157,-500.0,0.0001921,2]
[351804827,1738793440166,-500.0,0.0001921,2]
[351804829,1738793440176,-500.0,0.0001921,2]
[351804831,1738793440188,-500.0,0.0001921,2]
[351804833,1738793440199,-500.0,0.0001921,2]
[351804835,1738793440208,-266.75,0.0001921,2]
[351804837,1738793440218,-500.0,0.0001921,2]
[351804839,1738793440227,-2265.47,0.00019242,30]
[351804841,1738793440237,-1035.79054092,0.00019294,2]
[351804843,1738793440246,-1084.99441377,0.00019294,2]
[351804845,1738793440256,-1900.0,0.000193,7]
[351804847,1738793440265,-500.0,0.00019328,2]
[351804849,1738793440275,-500.0,0.00019347,2]
[351804851,1738793440284,-500.0,0.00019347,2]
[351804853,1738793440293,-500.0,0.00019347,2]
[351804855,1738793440302,-500.0,0.00019347,2]
[351804857,1738793440311,-500.0,0.00019347,2]
[351804859,1738793440320,-500.0,0.00019347,2]
[351804860,1738793440329,-2259.0,0.00019392,2]
[351804862,1738793440339,-2600.0,0.000194,7]
[351804865,1738793440348,-2000.0,0.0001942,2]
[351804867,1738793440358,-500.0,0.00019484,2]
[351804868,1738793440368,-500.0,0.00019484,2]
[351804870,1738793440377,-500.0,0.00019484,2]
[351804872,1738793440386,-500.0,0.00019484,2]
[351804874,1738793440395,-500.0,0.00019484,2]
[351804876,1738793440406,-500.0,0.00019484,2]
[351804878,1738793440417,-3300.0,0.000195,7]
[351804880,1738793440426,-2259.0,0.00019582,2]
[351804882,1738793440436,-1075.31241708,0.000196,2]
[351804884,1738793440446,-600.0,0.000196,7]
[351804886,1738793440457,-500.0,0.00019621,2]
[351804888,1738793440466,-500.0,0.00019621,2]
[351804890,1738793440476,-500.0,0.00019621,2]
[351804892,1738793440488,-500.0,0.00019621,2]
[351804894,1738793440497,-500.0,0.00019621,2]
[351804896,1738793440506,-334.76,0.00019621,2]
[351804898,1738793440516,-150.0,0.00019683,2]
[351804900,1738793440525,-1500.0,0.000197,2]
[351804902,1738793440534,-3000.0,0.000197,2]
[351804904,1738793440543,-600.0,0.000197,7]
[351804906,1738793440553,-500.0,0.00019758,2]
[351804908,1738793440563,-500.0,0.00019758,2]
[351804910,1738793440572,-500.0,0.00019758,2]
[351804912,1738793440581,-500.0,0.00019758,2]
[351804914,1738793440590,-500.0,0.00019758,2]
[351804916,1738793440600,-1059.58447585,0.00019771,2]
[351804918,1738793440610,-600.0,0.000198,7]
[351804920,1738793440619,-500.0,0.00019895,2]
[351804922,1738793440629,-500.0,0.00019895,2]
[351804924,1738793440638,-500.0,0.00019895,2]
[351804926,1738793440647,-500.0,0.00019895,2]
[351804928,1738793440657,-500.0,0.00019895,2]
[351804930,1738793440666,-16639.38466238,0.00019897,2]
[351804932,1738793440675,-600.0,0.000199,7]
[351804934,1738793440686,-151.39938346,0.00019948,2]
[351804936,1738793440695,-151.39938346,0.00019948,2]
[351804938,1738793440705,-151.39938346,0.00019948,2]
[351804940,1738793440714,-151.39938346,0.00019948,2]
[351804942,1738793440723,-151.39938346,0.00019948,2]
[351804944,1738793440733,-151.39938346,0.00019948,2]
[351804946,1738793440742,-151.39938346,0.00019948,2]
[351804948,1738793440752,-151.39938346,0.00019948,2]
[351804950,1738793440762,-151.39938346,0.00019948,2]
[351804952,1738793440771,-151.39938346,0.00019948,2]
[351804954,1738793440780,-151.39938346,0.00019948,2]
[351804956,1738793440789,-151.39938346,0.00019948,2]
[351804958,1738793440798,-151.39938346,0.00019948,2]
[351804960,1738793440808,-151.39938346,0.00019948,2]
[351804962,1738793440817,-151.39,0.00019948,2]
[351804964,1738793440826,-151.42982744,0.00019948,2]
[351804966,1738793440835,-151.42982744,0.00019948,2]
[351804968,1738793440845,-151.42982744,0.00019948,2]
[351804970,1738793440854,-151.42982744,0.00019948,2]
[351804972,1738793440863,-151.42982744,0.00019948,2]
[351804974,1738793440872,-151.42982744,0.00019948,2]
[351804976,1738793440882,-151.42982744,0.00019948,2]
[351804978,1738793440891,-151.42982744,0.00019948,2]
[351804980,1738793440900,-151.42982744,0.00019948,2]
[351804982,1738793440910,-151.42982744,0.00019948,2]
[351804984,1738793440922,-151.42982744,0.00019948,2]
[351804986,1738793440932,-151.42982744,0.00019948,2]
[351804988,1738793440941,-151.42982744,0.00019948,2]
[351804990,1738793440951,-151.42982744,0.00019948,2]
[351804992,1738793440960,-151.42982744,0.00019948,2]
[351804994,1738793440970,-151.42982744,0.00019948,2]
[351804996,1738793440979,-151.42982744,0.00019948,2]
[351804998,1738793440988,-151.42982744,0.00019948,2]
[351805000,1738793440998,-151.42982744,0.00019948,2]
[351805002,1738793441008,-151.42,0.00019948,2]
[351805004,1738793441018,-153.31220239,0.00019948,2]
[351805006,1738793441027,-153.31220239,0.00019948,2]
[351805008,1738793441038,-153.31220239,0.00019948,2]
[351805010,1738793441047,-153.31220239,0.00019948,2]
[351805012,1738793441057,-153.31220239,0.00019948,2]
[351805014,1738793441067,-153.31220239,0.00019948,2]
[351805016,1738793441076,-153.31220239,0.00019948,2]
[351805018,1738793441086,-153.31220239,0.00019948,2]
[351805020,1738793441095,-153.31220239,0.00019948,2]
[351805022,1738793441105,-153.31220239,0.00019948,2]
[351805024,1738793441114,-153.31220239,0.00019948,2]
[351805026,1738793441124,-153.31220239,0.00019948,2]
[351805028,1738793441133,-153.31220239,0.00019948,2]
[351805030,1738793441142,-153.31220239,0.00019948,2]
[351805032,1738793441151,-153.31220239,0.00019948,2]
[351805034,1738793441161,-153.31220239,0.00019948,2]
[351805036,1738793441170,-153.31220239,0.00019948,2]
[351805038,1738793441179,-153.31220239,0.00019948,2]
[351805040,1738793441189,-153.31,0.00019948,2]
[351805042,1738793441198,-3068.05049715,0.00019948,3]
[351805044,1738793441208,-4000.0,0.0001996,2]
[351805046,1738793441218,-764.46,0.00019961,2]
[351805048,1738793441227,-10000.0,0.0002,2]
[351805050,1738793441237,-2570.107351,0.0002,2]
[351805052,1738793441246,-8952.5,0.0002,2]
[351805054,1738793441255,-9999.99,0.0002,2]
[351805056,1738793441265,-987.32,0.0002,2]
[351805058,1738793441274,-9999.99,0.0002,2]
[351805060,1738793441283,-500.0,0.00020003,2]
[351805062,1738793441293,-500.0,0.00020032,2]
[351805064,1738793441303,-500.0,0.00020032,2]
[351805066,1738793441313,-500.0,0.00020032,2]
[351805068,1738793441323,-500.0,0.00020032,2]
[351805070,1738793441333,-500.0,0.00020032,2]
[351805072,1738793441343,-1577.65,0.00020047,2]
[351805074,1738793441352,-3203568.63898466,0.00020048,30]
[351805076,1738793441362,-4447652.97736458,0.00020048,30]
[351805079,1738793441385,-557.91029838,0.00020048,30]
[351805083,1738793441419,-500.0,0.00018799,2]
[351805085,1738793441429,-97.975,0.00020048,30]
[351805088,1738793441442,-11822.35339578,0.00020048,30]
[351805090,1738793441454,-2953.69020335,0.00020048,30]
[351805109,1738793441634,-626.74802543,0.00020048,30]
[351805112,1738793441648,-42725.44078354,0.00020048,30]
[351805262,1738793443056,-500.0,0.00018798,2]
[351805263,1738793443065,-80.90032,0.00018799,2]
[351805264,1738793443078,-440.29968,0.00018799,2]
[351805265,1738793443087,-300.89089682,0.000194,2]
[351805266,1738793443096,-25668.39166618,0.00020048,30]
[351805482,1738793445879,-1051.95627004,0.00020048,30]
[351805491,1738793445995,-5000.63812715,0.00020048,30]
[351805492,1738793446007,-437.07827759,0.00020048,30]
[351805493,1738793446124,-781.750005,0.00020048,30]
[351805496,1738793850773,150.0,0.00019408,120]
[351805497,1738793910763,150.0,0.00019955,120]
[351805500,1738794331400,384.21560235,0.0002,120]
[351805523,1738794632036,-204.1391,8.851e-05,2]
[351805524,1738794632045,-208.3439195,8.973e-05,2]
[351805525,1738794632057,-290.74567882,8.973e-05,2]
[351805526,1738794632140,-730.100008,8.973e-05,2]
[351805527,1738794636936,-269.899992,8.973e-05,2]
[351805528,1738794637102,-482.9825,8.973e-05,2]
[351805642,1738794638011,-3017.92790168,8.973e-05,2]
[351805644,1738794638021,-11835.98702336,0.000119,2]
[351805646,1738794638030,-651.19,0.00012,2]
[351805647,1738794638040,-364.3,0.00013699,2]
[351805648,1738794638050,-779.47615628,0.00013699,2]
[351805649,1738794638059,-1731.72,0.000149,31]
[351805650,1738794638069,-1731.72,0.000149,31]
[351805651,1738794638079,-1731.72,0.000149,31]
[351805652,1738794638088,-1731.72,0.000149,31]
[351805653,1738794638098,-1731.72,0.000149,31]
[351805654,1738794638107,-1731.72,0.000149,31]
[351805655,1738794638117,-1731.72,0.000149,31]
[351805656,1738794638126,-1731.72,0.000149,31]
[351805657,1738794638135,-1731.72,0.000149,31]
[351805658,1738794638145,-1731.72,0.000149,31]
[351805659,1738794638155,-1731.72,0.000149,31]
[351805660,1738794638165,-1731.72,0.000149,31]
[351805661,1738794638174,-1731.72,0.000149,31]
[351805662,1738794638183,-1731.72,0.000149,31]
[351805663,1738794638193,-1731.72,0.000149,31]
[351805664,1738794638202,-1731.72,0.000149,31]
[351805666,1738794638212,-10552.0,0.00015,2]
[351805668,1738794638222,-1000.0,0.00015134,2]
[351805670,1738794638231,-6263.85,0.00016116,2]
[351805672,1738794638241,-611.56,0.00016275,2]
[351805674,1738794638250,-1953.59,0.000167,7]
[351805675,1738794638260,-165.25,0.00016712,2]
[351805676,1738794638269,-364.3,0.00017123,2]
[351805677,1738794638279,-500.0,0.00017335,2]
[351805679,1738794638289,-500.0,0.00017435,2]
[351805681,1738794638299,-15028.36,0.00017595,2]
[351805683,1738794638308,-200.0,0.00017893,2]
[351805685,1738794638317,-1000.0,0.00018258,2]
[351805687,1738794638327,-500.0,0.00018321,2]
[351805689,1738794638337,-4000.0,0.00018506,2]
[351805691,1738794638346,-611.56,0.00018539,2]
[351805693,1738794638356,-2038.92,0.00018762,30]
[351805695,1738794638365,-1829.483,0.00018762,2]
[351805697,1738794638374,-500.0,0.00018798,2]
[351805699,1738794638383,-500.0,0.00018798,2]
[351805701,1738794638393,-500.0,0.00018798,2]
[351805703,1738794638403,-500.0,0.00018798,2]
[351805705,1738794638415,-500.0,0.00018798,2]
[351805707,1738794638425,-500.0,0.00018798,2]
[351805709,1738794638434,-500.0,0.00018798,2]
[351805711,1738794638443,-478.32,0.00018798,2]
[351805713,1738794638453,-500.0,0.00018798,2]
[351805715,1738794638463,-500.0,0.00018798,2]
[351805717,1738794638472,-500.0,0.00018798,2]
[351805719,1738794638484,-500.0,0.00018798,2]
[351805721,1738794638494,-500.0,0.00018798,2]
[351805723,1738794638505,-500.0,0.00018798,2]
[351805725,1738794638514,-500.0,0.00018798,2]
[351805727,1738794638524,-500.0,0.00018798,2]
[351805729,1738794638534,-500.0,0.00018798,2]
[351805731,1738794638544,-500.0,0.00018798,2]
[351805733,1738794638554,-500.0,0.00018798,2]
[351805735,1738794638564,-500.0,0.00018798,2]
[351805737,1738794638574,-500.0,0.00018798,2]
[351805739,1738794638584,-500.0,0.00018798,2]
[351805741,1738794638594,-500.0,0.00018798,2]
[351805743,1738794638603,-500.0,0.00018798,2]
[351805745,1738794638613,-500.0,0.00018798,2]
[351805747,1738794638623,-500.0,0.00018798,2]
[351805749,1738794638632,-500.0,0.00018798,2]
[351805751,1738794638642,-500.0,0.00018798,2]
[351805753,1738794638652,-500.0,0.00018798,2]
[351805755,1738794638666,-500.0,0.00018798,2]
[351805757,1738794638676,-500.0,0.00018798,2]
[351805759,1738794638686,-500.0,0.00018798,2]
[351805761,1738794638695,-500.0,0.00018798,2]
[351805763,1738794638705,-500.0,0.00018798,2]
[351805765,1738794638715,-500.0,0.00018798,2]
[351805767,1738794638725,-500.0,0.00018798,2]
[351805769,1738794638734,-500.0,0.00018798,2]
[351805771,1738794638744,-500.0,0.00018798,2]
[351805773,1738794638754,-377.62,0.00018798,2]
[351805775,1738794638764,-371.14,0.00018798,2]
[351805777,1738794638774,-369.92,0.00018798,2]
[351805779,1738794638787,-1151.84187513,0.00018799,2]
[351805781,1738794638802,-500.0,0.00018799,2]
[351805783,1738794638812,-500.0,0.00018799,2]
[351805785,1738794638821,-500.93221333,0.00018799,2]
[351805787,1738794638831,-500.0,0.00018799,2]
[351805789,1738794638841,-500.0,0.00018799,2]
[351805790,1738794638851,-500.0,0.00018799,2]
[351805793,1738794638861,-502.16219687,0.00018799,2]
[351805794,1738794638870,-501.79003758,0.00018799,2]
[351805796,1738794638882,-500.0,0.00018799,2]
[351805798,1738794638892,-500.0,0.00018799,2]
[351805800,1738794638901,-226.30881288,0.00018799,2]
[351805802,1738794638913,-500.0,0.00018799,2]
[351805804,1738794638923,-500.0,0.00018799,2]
[351805806,1738794638932,-500.0,0.00018799,2]